[Event "CZE-ch U12 2020"]
[Site "Kouty nad Desnou"]
[Date "2020.03.09"]
[Round "4.6"]
[White "Sedmihradsky, Tomas"]
[Black "Juhanak, Daniel"]
[Result "0-1"]
[ECO "A46"]
[WhiteElo "1024"]
[BlackElo "1656"]
[Annotator "NA"]
[PlyCount "72"]
[EventDate "2020.03.07"]
[EventCountry "CZE"]
[SourceTitle "playchess.com"]
[Source "ChessBase"]
[SourceQuality "1"]
[TimeControl "5400+30"]

1. d4 {[%emt 0:00:00]} Nf6 {[%emt 0:00:00]} 2. Nf3 {[%emt 0:00:00]} e6 {[%emt 0:00:12]} 3. c3 {[%emt 0:00:08]} b6 {[%emt 0:00:25]} 4. Bg5 Bb7 {[%emt 0:00:40]} 5. Nbd2 {[%emt 0:01:33]} d5 {[%emt 0:01:05]} 6. e3 {[%emt 0:00:36]} c5 {[%emt 0:00:39]} 7. Bb5+ {[%emt 0:01:22]} Bc6 {[%emt 0:06:41]} 8. Qa4 {[%emt 0:00:53]} Bxb5 {[%emt 0:03:45]} 9. Qxb5+ {[%emt 0:00:15]} Nbd7 {[%emt 0:01:30]} 10. Ne5 {[%emt 0:02:21]} Be7 {[%emt 0:02:02]} 11. Bxf6 {[%emt 0:01:17]} Bxf6 {[%emt 0:02:58]} 12. Qxd7+ {[%emt 0:00:46]} Qxd7 {[%emt 0:00:24]} 13. Nxd7 {[%emt 0:00:03]} Kxd7 {[%emt 0:00:06]} 14. dxc5 {[%emt 0:00:42]} bxc5 {[%emt 0:00:25]} 15. Nb3 {[%emt 0:02:14]} Kc6 {[%emt 0:02:01]} 16. O-O {[%emt 0:00:53]} a5 {[%emt 0:03:11]} 17. Rab1 {[%emt 0:05:38]} Rhb8 {[%emt 0:11:51]} 18. Nd2 {[%emt 0:02:34]} Rb6 {[%emt 0:08:30]} 19. Rfc1 {[%emt 0:01:28]} Rab8 {[%emt 0:18:09]} 20. b3 {[%emt 0:03:29]} Kd6 {[%emt 0:04:28]} 21. c4 {[%emt 0:02:23]} a4 {[%emt 0:03:11]} 22. cxd5 {[%emt 0:01:18]} exd5 {[%emt 0:00:46]} 23. Rd1 {[%emt 0:03:13]} Kc6 {[%emt 0:02:20]} 24. Kf1 {[%emt 0:04:14]} Bc3 {[%emt 0:03:36]} 25. bxa4 {[%emt 0:02:33]} Rb2 {[%emt 0:09:36]} 26. Rxb2 {[%emt 0:01:36]} Rxb2 {[%emt 0:00:48]} 27. Nb1 {[%emt 0:00:23]} Ba5 {[%emt 0:03:47]} 28. a3 {[%emt 0:00:45]} Rc2 {[%emt 0:00:46]} 29. g3 {[%emt 0:06:20]} c4 {[%emt 0:01:35]} 30. Kg2 {[%emt 0:01:12]} c3 {[%emt 0:00:43]} 31. e4 {[%emt 0:02:28]} dxe4 {[%emt 0:01:48]} 32. Rd4 {[%emt 0:00:54]} e3 {[%emt 0:00:26]} 33. Nxc3 {[%emt 0:01:27]} Bxc3 {[%emt 0:00:40]} 34. Rc4+ {[%emt 0:00:27]} Kd5 {[%emt 0:00:21]} 35. Rxc3 {[%emt 0:00:17]} Rxc3 {[%emt 0:00:06]} 36. fxe3 {[%emt 0:00:13]} Rxe3 {[%emt 0:00:03]} 0-1

[Event "CZE-ch U12 2020"]
[Site "Kouty nad Desnou"]
[Date "2020.03.09"]
[Round "4.7"]
[White "Jasso, Matej"]
[Black "Kubin, Tomas Daniel"]
[Result "1-0"]
[ECO "B01"]
[WhiteElo "1582"]
[BlackElo "1484"]
[Annotator "NA"]
[PlyCount "57"]
[EventDate "2020.03.07"]
[EventCountry "CZE"]
[SourceTitle "playchess.com"]
[Source "ChessBase"]
[SourceQuality "1"]
[TimeControl "5400+30"]

1. e4 {[%emt 0:00:00]} d5 {[%emt 0:00:00]} 2. exd5 {[%emt 0:00:00]} Nf6 {[%emt 0:00:00]} 3. d4 {[%emt 0:00:02]} Nxd5 {[%emt 0:00:05]} 4. c4 {[%emt 0:00:24]} Nb6 {[%emt 0:00:28]} 5. Nf3 {[%emt 0:00:31]} g6 {[%emt 0:00:14]} 6. Nc3 {[%emt 0:00:17]} Bg7 {[%emt 0:00:14]} 7. Be3 {[%emt 0:00:10]} O-O {[%emt 0:00:31]} 8. h3 {[%emt 0:00:19]} Nc6 {[%emt 0:01:07]} 9. Be2 {[%emt 0:01:06]} e5 {[%emt 0:03:07]} 10. d5 {[%emt 0:05:03]} Ne7 {[%emt 0:02:39]} 11. O-O {[%emt 0:00:53]} f5 {[%emt 0:07:35]} 12. Qb3 {[%emt 0:02:59]} Kh8 {[%emt 0:03:46]} 13. Rad1 {[%emt 0:01:56]} e4 {[%emt 0:19:47]} 14. Ng5 {[%emt 0:07:41]} f4 {[%emt 0:25:38]} 15. Bxb6 {[%emt 0:01:56]} axb6 {[%emt 0:00:38]} 16. Ncxe4 {[%emt 0:03:19]} Nf5 {[%emt 0:01:39]} 17. Nf3 {[%emt 0:07:04]} Re8 {[%emt 0:04:48]} 18. Neg5 {[%emt 0:02:16]} Nd6 {[%emt 0:02:16]} 19. Bd3 {[%emt 0:01:16]} Bd7 {[%emt 0:01:43]} 20. Rde1 {[%emt 0:03:37]} Ba4 {[%emt 0:06:29]} 21. Qb4 {[%emt 0:00:22]} c5 {[%emt 0:01:19]} 22. dxc6 {[%emt 0:01:57]} Bxc6 {[%emt 0:01:17]} 23. Qxd6 {[%emt 0:01:45]} Qxd6 {[%emt 0:00:11]} 24. Nf7+ {[%emt 0:00:06]} Kg8 {[%emt 0:00:10]} 25. Nxd6 {[%emt 0:00:09]} Red8 {[%emt 0:00:19]} 26. c5 {[%emt 0:00:26]} Kf8 {[%emt 0:01:17]} 27. Ng5 {[%emt 0:00:33]} Rd7 {[%emt 0:01:31]} 28. Ne6+ {[%emt 0:01:16]} Kg8 {[%emt 0:00:37]} 29. Bc4 {[%emt 0:01:07]} 1-0

[Event "CZE-ch U12 2020"]
[Site "Kouty nad Desnou"]
[Date "2020.03.09"]
[Round "4.8"]
[White "Matusik, Ondrej"]
[Black "Martirosyan, David"]
[Result "0-1"]
[ECO "B90"]
[WhiteElo "1482"]
[BlackElo "1522"]
[Annotator "NA"]
[PlyCount "58"]
[EventDate "2020.03.07"]
[EventCountry "CZE"]
[SourceTitle "playchess.com"]
[Source "ChessBase"]
[SourceQuality "1"]
[TimeControl "5400+30"]

1. e4 {[%emt 0:00:00]} c5 {[%emt 0:00:00]} 2. Nf3 {[%emt 0:00:00]} d6 {[%emt 0:00:00]} 3. d4 {[%emt 0:00:00]} cxd4 {[%emt 0:00:01]} 4. Nxd4 {[%emt 0:00:11]} Nf6 {[%emt 0:00:29]} 5. Nc3 {[%emt 0:00:17]} a6 {[%emt 0:00:44]} 6. a4 {[%emt 0:01:35]} e5 {[%emt 0:01:13]} 7. Nb3 {[%emt 0:00:54]} Be6 {[%emt 0:01:07]} 8. Be2 {[%emt 0:02:14]} Be7 {[%emt 0:01:15]} 9. O-O {[%emt 0:00:34]} O-O {[%emt 0:00:51]} 10. Be3 {[%emt 0:02:31]} Nbd7 {[%emt 0:01:39]} 11. f4 {[%emt 0:03:31]} exf4 {[%emt 0:02:47]} 12. Bxf4 {[%emt 0:00:13]} Nb6 {[%emt 0:02:37]} 13. Nd4 {[%emt 0:07:09]} Bc4 {[%emt 0:05:04]} 14. Nf5 {[%emt 0:03:15]} Bxe2 {[%emt 0:02:28]} 15. Qxe2 {[%emt 0:01:56]} Re8 {[%emt 0:02:36]} 16. Rfd1 {[%emt 0:02:23]} d5 {[%emt 0:02:35]} 17. Kh1 {[%emt 0:04:12]} Bc5 {[%emt 0:10:20]} 18. e5 {[%emt 0:05:23]} Qc8 {[%emt 0:18:50]} 19. Qd3 {[%emt 0:11:04]} Ng4 {[%emt 0:03:46]} 20. Bg3 {[%emt 0:09:43]} Rxe5 {[%emt 0:16:05]} 21. Nd4 {[%emt 0:20:58]} Re3 {[%emt 0:05:39]} 22. Qd2 {[%emt 0:01:07]} Nc4 {[%emt 0:05:10]} 23. Qc1 {[%emt 0:01:39]} Rxg3 {[%emt 0:01:15]} 24. hxg3 {[%emt 0:00:24]} Nf2+ {[%emt 0:00:09]} 25. Kh2 {[%emt 0:00:37]} Nxd1 {[%emt 0:00:13]} 26. Qxd1 {[%emt 0:00:26]} Nxb2 {[%emt 0:00:47]} 27. Qd2 {[%emt 0:01:04]} Qg4 {[%emt 0:01:47]} 28. Nce2 {[%emt 0:01:12]} Re8 {[%emt 0:03:06]} 29. Rb1 {[%emt 0:02:09]} Qh5+ {[%emt 0:04:44]} 0-1

[Event "CZE-ch U12 2020"]
[Site "Kouty nad Desnou"]
[Date "2020.03.09"]
[Round "4.11"]
[White "Sigut, Ondrej"]
[Black "Buchta, Bartolomej"]
[Result "0-1"]
[ECO "B52"]
[WhiteElo "1274"]
[BlackElo "1508"]
[Annotator "NA"]
[PlyCount "107"]
[EventDate "2020.03.07"]
[EventCountry "CZE"]
[SourceTitle "playchess.com"]
[Source "ChessBase"]
[SourceQuality "1"]
[TimeControl "5400+30"]

1. e4 {[%emt 0:00:00]} c5 {[%emt 0:00:00]} 2. Nf3 {[%emt 0:00:00]} d6 {[%emt 0:00:00]} 3. Bb5+ {[%emt 0:00:00]} Bd7 {[%emt 0:00:56]} 4. Bxd7+ {[%emt 0:00:31]} Qxd7 {[%emt 0:00:18]} 5. d4 {[%emt 0:01:58]} cxd4 {[%emt 0:00:14]} 6. Nxd4 {[%emt 0:01:15]} Nf6 {[%emt 0:00:27]} 7. Nc3 {[%emt 0:00:38]} Nc6 {[%emt 0:01:13]} 8. Nf3 {[%emt 0:02:22]} g6 {[%emt 0:04:46]} 9. O-O {[%emt 0:04:28]} Bg7 {[%emt 0:01:19]} 10. Bg5 {[%emt 0:02:26]} Rc8 {[%emt 0:04:02]} 11. Re1 {[%emt 0:03:13]} Ng4 {[%emt 0:03:59]} 12. h3 {[%emt 0:05:47]} Nge5 {[%emt 0:00:39]} 13. Nxe5 {[%emt 0:02:07]} Bxe5 {[%emt 0:01:24]} 14. Bh6 {[%emt 0:02:14]} Na5 {[%emt 0:05:23]} 15. Rb1 {[%emt 0:07:48]} Nc4 {[%emt 0:02:24]} 16. Re2 {[%emt 0:07:58]} Nxb2 {[%emt 0:03:00]} 17. Rxb2 {[%emt 0:02:14]} Rxc3 {[%emt 0:01:46]} 18. Rb3 {[%emt 0:08:35]} Qc7 {[%emt 0:02:20]} 19. Rxc3 {[%emt 0:03:15]} Qxc3 {[%emt 0:04:40]} 20. Re3 {[%emt 0:04:32]} Qd4 {[%emt 0:01:33]} 21. Qxd4 {[%emt 0:06:51]} Bxd4 {[%emt 0:00:08]} 22. Rb3 {[%emt 0:01:40]} b6 {[%emt 0:02:36]} 23. Kf1 {[%emt 0:04:15]} Kd7 {[%emt 0:00:21]} 24. c3 {[%emt 0:01:17]} Bc5 {[%emt 0:00:29]} 25. f3 {[%emt 0:00:49]} Ke6 {[%emt 0:06:17]} 26. Ke2 {[%emt 0:00:54]} d5 {[%emt 0:05:39]} 27. exd5+ {[%emt 0:02:09]} Kxd5 {[%emt 0:00:12]} 28. Kd3 {[%emt 0:03:00]} f5 {[%emt 0:02:03]} 29. c4+ {[%emt 0:03:28]} Kc6 {[%emt 0:00:36]} 30. Rc3 {[%emt 0:03:02]} Rd8+ {[%emt 0:00:28]} 31. Ke2 {[%emt 0:00:28]} Bb4 {[%emt 0:01:01]} 32. Rc2 {[%emt 0:01:14]} Kd6 {[%emt 0:04:57]} 33. Bf4+ {[%emt 0:02:12]} e5 {[%emt 0:00:24]} 34. Bg3 {[%emt 0:00:37]} Ke6 {[%emt 0:03:03]} 35. Bf2 {[%emt 0:03:27]} Rc8 {[%emt 0:01:29]} 36. Be3 {[%emt 0:01:48]} Rc7 {[%emt 0:02:18]} 37. Rc1 {[%emt 0:02:52]} Ba3 {[%emt 0:11:19]} 38. Rc3 {[%emt 0:00:53]} Bb4 {[%emt 0:00:38]} 39. Rc1 {[%emt 0:00:10]} e4 {[%emt 0:03:22]} 40. fxe4 {[%emt 0:01:50]} fxe4 {[%emt 0:00:09]} 41. Bf4 {[%emt 0:00:40]} Rd7 {[%emt 0:05:22]} 42. Rc2 {[%emt 0:01:35]} Kf5 {[%emt 0:01:19]} 43. Be3 {[%emt 0:00:51]} h5 {[%emt 0:02:16]} 44. Kf2 {[%emt 0:02:41]} Rc7 {[%emt 0:00:56]} 45. Rc1 {[%emt 0:00:18]} Bc5 {[%emt 0:01:13]} 46. g3 {[%emt 0:01:13]} b5 {[%emt 0:01:51]} 47. Bxc5 {[%emt 0:00:42]} Rxc5 {[%emt 0:00:07]} 48. Ke3 {[%emt 0:00:08]} Rxc4 {[%emt 0:02:09]} 49. Rxc4 {[%emt 0:00:22]} bxc4 {[%emt 0:00:06]} 50. Kd4 {[%emt 0:00:11]} h4 {[%emt 0:00:15]} 51. gxh4 Kf4 {[%emt 0:00:10]} 52. Kxc4 {[%emt 0:00:30]} Kf3 {[%emt 0:01:00]} 53. Kc3 {[%emt 0:00:11]} Kf2 {[%emt 0:00:22]} 54. Kd4 0-1

[Event "CZE-ch U12 2020"]
[Site "Kouty nad Desnou"]
[Date "2020.03.09"]
[Round "4.12"]
[White "Matus, Jakub"]
[Black "Tesar, Jakub"]
[Result "1/2-1/2"]
[ECO "C73"]
[WhiteElo "1240"]
[BlackElo "1446"]
[Annotator "NA"]
[PlyCount "84"]
[EventDate "2020.03.07"]
[EventCountry "CZE"]
[SourceTitle "playchess.com"]
[Source "ChessBase"]
[SourceQuality "1"]
[TimeControl "5400+30"]

1. e4 {[%emt 0:00:00]} e5 {[%emt 0:00:00]} 2. Nf3 {[%emt 0:00:00]} Nc6 {[%emt 0:00:00]} 3. Bb5 {[%emt 0:00:00]} a6 {[%emt 0:00:03]} 4. Ba4 {[%emt 0:00:00]} d6 {[%emt 0:00:48]} 5. Bxc6+ {[%emt 0:00:00]} bxc6 {[%emt 0:00:09]} 6. d4 {[%emt 0:00:00]} exd4 {[%emt 0:00:50]} 7. Qxd4 {[%emt 0:00:13]} Nf6 {[%emt 0:01:39]} 8. Nc3 {[%emt 0:02:38]} Be7 {[%emt 0:05:28]} 9. Bf4 {[%emt 0:04:08]} O-O {[%emt 0:03:21]} 10. O-O {[%emt 0:02:29]} Rb8 {[%emt 0:10:38]} 11. b3 {[%emt 0:04:13]} Re8 {[%emt 0:07:00]} 12. h3 {[%emt 0:07:17]} Nd7 {[%emt 0:06:00]} 13. Qc4 {[%emt 0:06:16]} Bf6 {[%emt 0:15:19]} 14. Rfe1 {[%emt 0:06:55]} c5 {[%emt 0:09:11]} 15. Rad1 {[%emt 0:05:17]} Rb4 {[%emt 0:04:38]} 16. Qd3 {[%emt 0:03:31]} Bxc3 {[%emt 0:03:51]} 17. Qxc3 {[%emt 0:00:07]} Rbxe4 {[%emt 0:00:23]} 18. Rxe4 {[%emt 0:00:26]} Rxe4 {[%emt 0:00:34]} 19. Bg3 {[%emt 0:00:45]} Nb6 {[%emt 0:05:43]} 20. Qd3 {[%emt 0:02:29]} Re8 {[%emt 0:05:55]} 21. Bh4 {[%emt 0:04:38]} f6 {[%emt 0:00:33]} 22. a4 {[%emt 0:01:35]} Bb7 {[%emt 0:02:40]} 23. a5 {[%emt 0:02:47]} Nd7 {[%emt 0:00:38]} 24. Qf5 {[%emt 0:06:15]} Be4 {[%emt 0:04:10]} 25. Qh5 {[%emt 0:00:51]} Bxc2 {[%emt 0:03:30]} 26. Qd5+ {[%emt 0:00:17]} Kf8 {[%emt 0:00:59]} 27. Rd2 {[%emt 0:00:46]} Be4 {[%emt 0:00:37]} 28. Qc4 {[%emt 0:00:30]} Bb7 {[%emt 0:03:07]} 29. Qc2 {[%emt 0:02:05]} Be4 {[%emt 0:00:47]} 30. Qc4 {[%emt 0:00:14]} Qa8 {[%emt 0:01:14]} 31. Re2 {[%emt 0:00:45]} Bd5 {[%emt 0:01:49]} 32. Rxe8+ {[%emt 0:00:51]} Kxe8 {[%emt 0:00:17]} 33. Qd3 {[%emt 0:00:31]} Be4 {[%emt 0:00:27]} 34. Qe2 {[%emt 0:00:16]} Kf8 {[%emt 0:00:17]} 35. Bg3 {[%emt 0:01:29]} Bxf3 36. gxf3 {[%emt 0:00:12]} Ne5 {[%emt 0:00:59]} 37. Bxe5 {[%emt 0:00:18]} fxe5 {[%emt 0:00:10]} 38. Qd3 {[%emt 0:00:24]} g6 {[%emt 0:00:28]} 39. Kg2 {[%emt 0:00:48]} Qb7 {[%emt 0:00:33]} 40. Kg3 {[%emt 0:00:51]} Ke7 {[%emt 0:00:55]} 41. Qc4 {[%emt 0:00:24]} Qa8 {[%emt 0:00:59]} 42. Qh4+ {[%emt 0:00:13]} Ke6 {[%emt 0:02:05]} 1/2-1/2

[Event "CZE-ch U12 2020"]
[Site "Kouty nad Desnou"]
[Date "2020.03.10"]
[Round "5.3"]
[White "Hladky, Tadeas"]
[Black "Prazak, Daniel"]
[Result "1/2-1/2"]
[ECO "C03"]
[WhiteElo "1773"]
[BlackElo "1765"]
[Annotator "NA RC"]
[PlyCount "79"]
[EventDate "2020.03.07"]
[EventCountry "CZE"]
[SourceTitle "playchess.com"]
[Source "ChessBase"]
[SourceQuality "1"]
[TimeControl "5400+30"]

1. e4 {[%emt 0:00:00]} e6 {[%emt 0:00:00]} 2. d4 {[%emt 0:00:00]} d5 {[%emt 0:00:00]} 3. Nd2 {[%emt 0:00:00]} a6 {[%emt 0:00:40]} 4. Ngf3 {[%emt 0:01:23]} c5 {[%emt 0:00:44]} 5. exd5 {[%emt 0:00:08]} exd5 {[%emt 0:00:12]} 6. c3 {[%emt 0:00:23]} Nf6 {[%emt 0:02:34]} 7. Be2 {[%emt 0:00:59]} Nc6 {[%emt 0:01:16]} 8. O-O {[%emt 0:01:40]} cxd4 {[%emt 0:01:10]} 9. Nxd4 {[%emt 0:00:13]} Nxd4 {[%emt 0:00:07]} 10. cxd4 {[%emt 0:00:05]} Bd6 {[%emt 0:00:23]} 11. Re1 {[%emt 0:01:30]} O-O {[%emt 0:01:56]} 12. Nf1 {[%emt 0:00:28]} Be6 {[%emt 0:06:20]} 13. Bg5 {[%emt 0:01:13]} h6 {[%emt 0:01:52]} 14. Be3 {[%emt 0:00:25]} Qb6 {[%emt 0:02:50]} 15. Qb1 {[%emt 0:04:05]} Rac8 {[%emt 0:03:29]} 16. Rc1 {[%emt 0:03:22]} Rxc1 {[%emt 0:01:56]} 17. Qxc1 {[%emt 0:00:16]} Rc8 {[%emt 0:00:42]} 18. Qb1 {[%emt 0:01:15]} Ng4 {[%emt 0:22:11]} 19. Bxg4 {[%emt 0:03:33]} Bxg4 {[%emt 0:01:12]} 20. Ng3 {[%emt 0:02:43]} Be7 {[%emt 0:06:46]} 21. h3 {[%emt 0:05:23]} Be6 {[%emt 0:02:19]} 22. b3 {[%emt 0:03:30]} Bf6 {[%emt 0:03:00]} 23. Qb2 {[%emt 0:01:45]} Qb4 {[%emt 0:05:01]} 24. Ne2 {[%emt 0:01:06]} Bf5 {[%emt 0:05:15]} 25. Rc1 {[%emt 0:01:26]} Rc6 {[%emt 0:04:00]} 26. Rxc6 {[%emt 0:02:24]} bxc6 {[%emt 0:00:04]} 27. Qc3 {[%emt 0:00:31]} Qb5 {[%emt 0:05:17]} 28. Nc1 {[%emt 0:04:03]} a5 {[%emt 0:03:48]} 29. a4 {[%emt 0:10:35]} Qb6 {[%emt 0:01:49]} 30. Nd3 {[%emt 0:01:46]} Bxd3 {[%emt 0:01:05]} 31. Qxd3 {[%emt 0:00:03]} Be7 {[%emt 0:02:30]} 32. Qc3 {[%emt 0:03:14]} Bb4 {[%emt 0:00:56]} 33. Qd3 {[%emt 0:02:28]} Bd6 {[%emt 0:00:15]} 34. g3 {[%emt 0:01:06]} Be7 {[%emt 0:02:00]} 35. Kg2 {[%emt 0:00:36]} Bb4 {[%emt 0:00:28]} 36. Qc2 {[%emt 0:00:14]} Qb7 {[%emt 0:00:30]} 37. Kh2 {[%emt 0:01:01]} Qb6 {[%emt 0:00:34]} 38. Kg2 {[%emt 0:00:29]} Qb7 {[%emt 0:00:09]} 39. Kh2 {[%emt 0:00:07]} Qb6 {[%emt 0:00:04]} 40. Kg2 {[%emt 0:00:07]} 1/2-1/2

[Event "CZE-ch U12 2020"]
[Site "Kouty nad Desnou"]
[Date "2020.03.10"]
[Round "5.4"]
[White "Brozka, Karel"]
[Black "Jasso, Matej"]
[Result "1-0"]
[ECO "E91"]
[WhiteElo "2013"]
[BlackElo "1582"]
[Annotator "ChessBase"]
[PlyCount "83"]
[EventDate "2020.03.07"]
[EventCountry "CZE"]
[SourceTitle "playchess.com"]
[Source "ChessBase"]
[SourceQuality "1"]
[TimeControl "5400+30"]

1. d4 {[%emt 0:00:00]} Nf6 {[%emt 0:00:00]} 2. Nf3 {[%emt 0:00:00]} g6 {[%emt 0:00:00]} 3. c4 {[%emt 0:00:00]} Bg7 {[%emt 0:00:00]} 4. Nc3 {[%emt 0:00:07]} O-O {[%emt 0:00:00]} 5. e4 {[%emt 0:00:29]} d6 {[%emt 0:00:04]} 6. Be2 {[%emt 0:00:26]} Bg4 {[%emt 0:01:08]} 7. Be3 {[%emt 0:00:55]} Nfd7 {[%emt 0:00:46]} 8. Nd2 {[%emt 0:13:30]} Bxe2 {[%emt 0:00:51]} 9. Qxe2 {[%emt 0:00:21]} c5 {[%emt 0:02:17]} 10. d5 {[%emt 0:01:05]} Na6 {[%emt 0:00:35]} 11. f4 {[%emt 0:01:26]} Rb8 {[%emt 0:05:13]} 12. O-O {[%emt 0:06:55]} Nc7 {[%emt 0:03:36]} 13. a4 {[%emt 0:00:29]} a6 {[%emt 0:01:35]} 14. a5 {[%emt 0:02:06]} b5 {[%emt 0:01:48]} 15. axb6 {[%emt 0:01:12]} Rxb6 {[%emt 0:00:14]} 16. Na4 {[%emt 0:02:54]} Rb4 {[%emt 0:01:46]} 17. Ra2 {[%emt 0:01:37]} Qb8 {[%emt 0:01:55]} 18. b3 {[%emt 0:00:52]} Nb6 {[%emt 0:00:58]} 19. Nxb6 {[%emt 0:03:27]} Rxb6 {[%emt 0:00:51]} 20. e5 {[%emt 0:00:56]} Re8 {[%emt 0:05:44]} 21. Qf3 {[%emt 0:05:39]} Qc8 {[%emt 0:05:10]} 22. g4 {[%emt 0:03:46]} Qd7 {[%emt 0:06:51]} 23. Ra3 {[%emt 0:07:18]} f5 {[%emt 0:03:35]} 24. e6 {[%emt 0:04:29]} Nxe6 {[%emt 0:00:46]} 25. dxe6 {[%emt 0:00:24]} Qxe6 {[%emt 0:00:10]} 26. g5 {[%emt 0:07:11]} Qf7 {[%emt 0:03:37]} 27. Bf2 {[%emt 0:04:45]} Kh8 {[%emt 0:03:57]} 28. Re1 {[%emt 0:01:01]} e5 {[%emt 0:04:15]} 29. fxe5 {[%emt 0:02:34]} Bxe5 {[%emt 0:01:38]} 30. Qd3 {[%emt 0:02:04]} Re7 {[%emt 0:16:46]} 31. Nf3 {[%emt 0:02:50]} Bb2 {[%emt 0:02:36]} 32. Ra2 {[%emt 0:00:43]} Rxe1+ {[%emt 0:01:21]} 33. Nxe1 {[%emt 0:00:51]} Be5 {[%emt 0:01:55]} 34. Bxc5 {[%emt 0:03:00]} Rc6 {[%emt 0:01:23]} 35. Bd4 {[%emt 0:00:52]} Qe7 {[%emt 0:00:55]} 36. Nf3 {[%emt 0:00:26]} Rc8 {[%emt 0:02:23]} 37. Re2 {[%emt 0:01:25]} Re8 {[%emt 0:01:07]} 38. Bxe5+ {[%emt 0:01:42]} dxe5 {[%emt 0:00:10]} 39. Rxe5 {[%emt 0:00:40]} Qa7+ {[%emt 0:00:05]} 40. Kg2 {[%emt 0:00:13]} Rxe5 {[%emt 0:00:26]} 41. Nxe5 {[%emt 0:00:03]} Qe7 {[%emt 0:00:10]} 42. Qd8+ {[%emt 0:01:21]} 1-0

[Event "CZE-ch U12 2020"]
[Site "Kouty nad Desnou"]
[Date "2020.03.10"]
[Round "5.5"]
[White "Juhanak, Daniel"]
[Black "Nguyen, Thai Dang Vi"]
[Result "1-0"]
[ECO "D23"]
[WhiteElo "1656"]
[BlackElo "1510"]
[Annotator "NA"]
[PlyCount "87"]
[EventDate "2020.03.07"]
[EventCountry "CZE"]
[SourceTitle "playchess.com"]
[Source "ChessBase"]
[SourceQuality "1"]
[TimeControl "5400+30"]

1. d4 {[%emt 0:00:00]} d5 {[%emt 0:00:00]} 2. c4 {[%emt 0:00:00]} dxc4 {[%emt 0:00:00]} 3. Nf3 {[%emt 0:01:14]} Nf6 {[%emt 0:00:09]} 4. g3 {[%emt 0:00:45]} Bf5 {[%emt 0:02:30]} 5. Bg2 {[%emt 0:05:32]} c6 {[%emt 0:00:27]} 6. Nc3 {[%emt 0:07:54]} e6 {[%emt 0:00:44]} 7. a4 {[%emt 0:03:41]} Nbd7 {[%emt 0:01:39]} 8. O-O {[%emt 0:00:44]} Bd6 {[%emt 0:02:04]} 9. Nd2 {[%emt 0:02:23]} Bc7 {[%emt 0:05:21]} 10. Nxc4 {[%emt 0:04:54]} Nb6 {[%emt 0:00:53]} 11. Na5 {[%emt 0:14:34]} Qc8 {[%emt 0:09:30]} 12. Nb3 {[%emt 0:12:44]} O-O {[%emt 0:02:02]} 13. Bg5 {[%emt 0:08:06]} Nbd7 {[%emt 0:01:37]} 14. a5 {[%emt 0:04:03]} h6 {[%emt 0:00:39]} 15. Bf4 {[%emt 0:00:57]} Bxf4 {[%emt 0:08:12]} 16. gxf4 {[%emt 0:00:25]} Qc7 {[%emt 0:00:31]} 17. e3 {[%emt 0:06:57]} Rad8 {[%emt 0:03:01]} 18. Qe2 {[%emt 0:03:16]} c5 {[%emt 0:03:46]} 19. Nb5 {[%emt 0:02:24]} Qb8 {[%emt 0:04:18]} 20. dxc5 {[%emt 0:01:39]} e5 {[%emt 0:16:53]} 21. Rfd1 {[%emt 0:16:42]} exf4 {[%emt 0:01:30]} 22. exf4 {[%emt 0:00:27]} Rfe8 {[%emt 0:00:34]} 23. Qc4 {[%emt 0:00:56]} Be6 {[%emt 0:02:05]} 24. Qc3 {[%emt 0:00:57]} Bxb3 {[%emt 0:01:19]} 25. Qxb3 {[%emt 0:00:14]} Nxc5 {[%emt 0:00:21]} 26. Qc4 {[%emt 0:00:31]} Nce4 {[%emt 0:04:28]} 27. Qc7 {[%emt 0:00:39]} a6 {[%emt 0:03:02]} 28. Qxb8 {[%emt 0:00:31]} Rxb8 {[%emt 0:00:17]} 29. Nd6 {[%emt 0:00:34]} Nxd6 {[%emt 0:04:21]} 30. Rxd6 {[%emt 0:00:04]} Re2 {[%emt 0:05:56]} 31. Rb6 {[%emt 0:00:15]} Ne4 {[%emt 0:00:51]} 32. Bf3 {[%emt 0:00:20]} Rxf2 {[%emt 0:01:55]} 33. Bxe4 {[%emt 0:00:20]} Rxf4 {[%emt 0:00:06]} 34. Bxb7 {[%emt 0:00:39]} Rg4+ {[%emt 0:00:10]} 35. Kf2 {[%emt 0:00:52]} Rg6 {[%emt 0:00:41]} 36. Rxg6 {[%emt 0:00:25]} fxg6 {[%emt 0:00:10]} 37. Bxa6 {[%emt 0:00:06]} Rxb2+ {[%emt 0:00:06]} 38. Be2 {[%emt 0:00:14]} Rb7 {[%emt 0:00:24]} 39. a6 {[%emt 0:00:08]} Ra7 {[%emt 0:00:09]} 40. Rb1 {[%emt 0:00:26]} Kf8 {[%emt 0:00:23]} 41. Rb8+ {[%emt 0:00:11]} Ke7 {[%emt 0:00:15]} 42. Rb7+ {[%emt 0:00:01]} Rxb7 {[%emt 0:00:11]} 43. axb7 {[%emt 0:00:05]} Kd7 {[%emt 0:00:09]} 44. b8=Q {[%emt 0:00:05]} 1-0

[Event "CZE-ch U12 2020"]
[Site "Kouty nad Desnou"]
[Date "2020.03.10"]
[Round "5.6"]
[White "Soucek, Jan"]
[Black "Veverka, Vladimir"]
[Result "1-0"]
[ECO "D15"]
[WhiteElo "1872"]
[BlackElo "1656"]
[Annotator "NA RC"]
[PlyCount "63"]
[EventDate "2020.03.07"]
[EventCountry "CZE"]
[SourceTitle "playchess.com"]
[Source "ChessBase"]
[SourceQuality "1"]
[TimeControl "5400+30"]

{[%evp 8,62,22,32767,79,85,174,172,174,179,173,169,181,205,190,213,246,206,201,198,373,219,32767,212,257,268,268,273,300,297,360,291,32767,32767,32767,32767,32767,32767,1055,927,767,801,1156,1650,1475,1816,29994,29995,29995,29996,29996,29997,29997,561,29998,29999,29999]} 1. d4 {[%emt 0:00:00]} d5 {[%emt 0:00:00]} 2. c4 {[%emt 0:00:00]} c6 {[%emt 0:00:20]} 3. Nc3 {[%emt 0:00:07]} Nf6 {[%emt 0:00:27]} 4. Nf3 {[%emt 0:00:19]} dxc4 {[%emt 0:00:22]} 5. e3 {[%emt 0:01:35]} h6 {[%emt 0:10:16]} (5... b5 $11 {remains equal.}) 6. Bxc4 {[%emt 0:01:14] D15: Slav Defence: 4 Nc3 a6 and gambit lines after 4 Nc3 dxc4.} Bf5 {[%emt 0:01:59]} (6... b5 $16 {might work better.}) 7. Qb3 {[%emt 0:02:25]} e6 {[%emt 0:05:00]} 8. Qxb7 {[%emt 0:05:28]} Nbd7 {[%emt 0:00:50]} 9. Qxc6 {[%emt 0:07:50]} Rc8 {[%emt 0:02:38] [#]} 10. Qa6 $146 {[%emt 0:02:06]} ({Predecessor:} 10. Qa4 Bd6 11. Ba6 Rb8 12. Nb5 Qe7 13. Nxd6+ Qxd6 14. b3 Qc7 15. Bd2 Be4 16. Rc1 {1-0 (43) Panos,J (1845)-Laloucek,M (1771) Marianske Lazne 2016}) 10... Bb4 {[%emt 0:02:25]} 11. Bd2 {[%emt 0:01:40]} Qc7 {[%emt 0:13:51]} 12. Bd3 {[%emt 0:05:06]} Bxc3 {[%emt 0:09:13]} 13. Bxc3 {[%emt 0:03:54]} Nd5 $2 {[%emt 0:24:47]} (13... O-O {is a better defense.}) 14. Bxf5 {[%emt 0:46:38]} exf5 {[%emt 0:06:26]} 15. O-O {[%emt 0:04:51]} Nxc3 {[%emt 0:05:18]} 16. bxc3 {[%emt 0:00:18]} Qxc3 {[%emt 0:01:10]} 17. Qxa7 {[%emt 0:01:05]} Nf6 {[%emt 0:03:12]} 18. Qa4+ {[%emt 0:00:59]} Ke7 {[%emt 0:01:18]} 19. Rab1 {[%emt 0:02:21]} Ne4 {[%emt 0:02:16]} 20. Ne5 {[%emt 0:03:35]} Rc7 {[%emt 0:01:17]} 21. Rb3 {[%emt 0:01:08]} Qc2 {[%emt 0:01:11]} 22. Qa3+ {[%emt 0:01:00]} Kf6 {[%emt 0:03:38]} 23. Rb6+ {[%emt 0:01:21]} Kg5 {[%emt 0:00:50]} 24. f3 {[%emt 0:03:57]} Nc3 {[%emt 0:02:38]} 25. Qd6 {[%emt 0:02:00]} Ne2+ {[%emt 0:00:35]} 26. Kh1 {[%emt 0:00:32]} Rf8 {[%emt 0:00:22] [#]} 27. Nxf7+ $1 {[%emt 0:01:14]} Rfxf7 {[%emt 0:00:26]} 28. Qg6+ {[%emt 0:00:17]} Kh4 {[%emt 0:00:07]} 29. g3+ {[%emt 0:00:26]} Nxg3+ {[%emt 0:00:40]} 30. Qxg3+ {[%emt 0:00:11]} Kh5 {[%emt 0:00:12]} 31. Qh3+ {[%emt 0:00:05]} Kg5 {[%emt 0:00:23]} 32. f4# {[%emt 0:00:04]} 1-0